Cogmind - Beta 9.4 @@@ ROGUE MODE // 2020.01.09 @ 00:26:44 Player: Khauvinkh Result: Destroyed by S-10 Pest with Light Assault Rifle Performance ------------- Evolutions (1) 500 Regions Visited (2) 400 Robots Destroyed (29) 145 Value Destroyed (742) 742 Prototype IDs (2) 40 Alien Tech Used (0) 0 Bonus (0) 0 TOTAL SCORE: 1827 Bonus ------- None Cogmind --------- Core Integrity 0/400 Matter 297/300 Energy 280/280 System Corruption 14% Temperature Cool (0) Movement Walking (120) Location -9/Materials Parts ------- > --- POWER (1) -------- Cooled Ion Engine > --- PROPULSION (3) --- Aluminum Leg Aluminum Leg Aluminum Leg > --- UTILITY (3) ------ Heat Sink Visual Processing Unit Utility Shielding > --- WEAPON (2) ------- Improved Assault Rifle > --- INVENTORY (4) ---- Cooled Ion Engine Peak State ------------ > --- POWER ------------ Cooled Ion Engine > --- PROPULSION ------- Aluminum Leg Aluminum Leg Aluminum Leg > --- UTILITY ---------- Heat Sink Visual Processing Unit Utility Shielding > --- WEAPON ----------- Small Laser Improved Assault Rifle > --- INVENTORY -------- Cooled Ion Engine [Rating: 14] Favorites ----------- Power Light Ion Engine Engine Light Ion Engine Power Core Light Nuclear Core Propulsion Aluminum Leg Treads Light Treads Leg Aluminum Leg Utility Small Storage Unit Device Heat Sink Storage Small Storage Unit Processor Visual Processing Unit Protection Light Armor Plating Weapon Medium Laser Energy Gun Medium Laser Ballistic Gun Light Assault Rifle Launcher Grenade Launcher Build | -11 -10 -9 ------- Run | Scr Mat Mat Slots Evolved 2 | . . 2 Power . | . . . Propulsion 1 | . . 1 Utility 1 | . . 1 Weapon . | . . . Parts Attached 32 | 6 8 18 Power 5 | 1 2 2 Engine 3 | 1 . 2 Core 2 | . 2 . Reactor . | . . . Propulsion 8 | 2 1 5 Treads 2 | . . 2 Leg 6 | 2 1 3 Wheel . | . . . Hover . | . . . Flight . | . . . Utility 7 | 1 2 4 Device 1 | . . 1 Storage 1 | 1 . . Processor 1 | . . 1 Hackware . | . . . Protection 4 | . 2 2 Artifact . | . . . Weapon 12 | 2 3 7 Energy Gun 3 | 1 1 1 Energy Cannon . | . . . Ballistic Gun 8 | 1 2 5 Ballistic Cannon . | . . . Launcher 1 | . . 1 Special Weapon . | . . . Impact Weapon . | . . . Slashing Weapon . | . . . Piercing Weapon . | . . . Special Melee Weapon . | . . . Unidentified Prototypes 2 | . . 2 Parts Lost 13 | . 2 11 Power 1 | . . 1 Propulsion 2 | . . 2 Utility 4 | . 1 3 Weapon 6 | . 1 5 Highest Loss Streak 10 | . 2 10 Average Slot Usage (%) 80 | . 91 61 Engine 8 | . 10 5 Core 3 | . 3 4 Treads 1 | . . 4 Leg 23 | . 27 15 Storage 10 | . 14 4 Protection 9 | . 8 9 Energy Gun 10 | . 13 5 Ballistic Gun 11 | . 13 8 Naked Turns 11 | . . 11 Heaviest Build 20 | 11 15 20 Greatest Support 40 | 20 20 40 Greatest Overweight (x) 2 | . 1 2 Average Overweight (x) . | . . . Largest Inventory Capacity 6 | 6 6 6 Average Capacity 5 | 5 6 4 Most Carried 6 | 4 6 6 Average Carried 4 | 1 5 3 Final Capacity 6 | 6 6 4 Final Carried 6 | 1 6 1 Class Distribution -------------------- 89% | Mutant 10% | Scavenger-Mutant Dominant Class ---------------- Mutant | -10/Materials Mutant | -9/Materials Resources | -11 -10 -9 ----------- Run | Scr Mat Mat Matter Collected 641 | 189 178 274 Remotely . | . . . Salvage Created 865 | . 359 506 Parts 64 | . 36 28 Haulers Intercepted . | . . . Recyclers Shooed . | . . . Parts Field Recycled . | . . . Retrieved Matter . | . . . Parts Self-Destructed . | . . . Prevented . | . . . Kills | -11 -10 -9 ------- Run | Scr Mat Mat Combat Hostiles Destroyed 26 | . 10 16 Guns 17 | . 10 7 AOE 9 | . . 9 Classes Destroyed 6 | . 4 2 Recycler 1 | . 1 . Watcher 2 | . 1 1 Swarmer 9 | . 6 3 Grunt 15 | . 4 11 Brawler 1 | . . 1 Sentry 1 | . . 1 Best Kill Streak 14 | . 4 14 Combat Bots Only 14 | . 3 14 Max Kills in Single Turn 3 | . 1 3 Gunslinging . | . . . Exploded 3 | . . 3 Melee . | . . . Uniques/NPCs Destroyed . | . . . Combat | -11 -10 -9 -------- Run | Scr Mat Mat Damage Taken 2162 | . 420 1742 Core 460 | . 53 407 Absorbed by Shields . | . . . Core Remaining (%) 89 | 100 78 . Volleys Fired 67 | . 33 34 Largest 2 | . 2 2 Hottest 80 | . 70 80 Shots Fired 106 | . 61 45 Gun 97 | . 61 36 Cannon . | . . . Launcher 9 | . . 9 Special . | . . . Kinetic 53 | . 29 24 Thermal 44 | . 32 12 Explosive 9 | . . 9 Electromagnetic . | . . . Robot Hit Streak 8 | . 8 7 Robot Miss Streak 4 | . 4 4 Penetration Max . | . . . Secondary Targets 3 | . 2 1 Max Gunslinging Chain 1 | . 1 1 Shots Hit Robots 66 | . 37 29 Core Hits 50 | . 20 30 Critical Hits . | . . . Critical Kills . | . . . Critical Parts Destroyed . | . . . Melee Attacks . | . . . Impact . | . . . Slashing . | . . . Piercing . | . . . Sneak Attacks . | . . . Combat Hostiles . | . . . Follow-up Attacks . | . . . Damage Inflicted 1351 | . 407 944 Guns 730 | . 407 323 Cannons . | . . . Explosions 621 | . . 621 Melee . | . . . Ramming . | . . . Kinetic 367 | . 168 199 Thermal 363 | . 239 124 Explosive 621 | . . 621 Electromagnetic . | . . . Impact . | . . . Slashing . | . . . Piercing . | . . . Highest Corruption 14 | . 1 14 Average Corruption 4 | . 1 13 Corruption Purged . | . . . Effects 13 | . 5 8 Message Errors 4 | . 1 3 Matter Fused 2 | . . 2 Heat Flow Errors 1 | . . 1 Energy Discharges 1 | . 1 . Data Loss (minor) 1 | . 1 . Targeting Errors 1 | . 1 . Weapon Failures 3 | . 1 2 Overload Shots . | . . . Overflow Damage 11 | . . 11 Projectiles . | . . . Explosions 11 | . . 11 Melee . | . . . Knockbacks . | . . . Impact . | . . . Kinetic . | . . . Secondary . | . . . Self-Inflicted Damage 12 | . . 12 Shots 2 | . . 2 Rammed . | . . . Targets Rammed . | . . . Kicked . | . . . Crushed . | . . . Highest Temperature 470 | . 223 470 Average Temperature 160 | . 79 273 Received Heat Transfer 447 | . 99 348 Effects 6 | . . 6 Shutdowns 2 | . . 2 Energy Bleed 1 | . . 1 Interference 1 | . . 1 Damage (minor) 2 | . . 2 Siege Activations . | . . . Robots Corrupted . | . . . Combat Hostiles . | . . . Parts Fried . | . . . Impact Corruptions . | . . . Robots Melted . | . . . Combat Hostiles . | . . . Parts Melted . | . . . Heat Transferred 1073 | . 703 370 Parts Sabotaged . | . . . Parts Stolen . | . . . Parts Stripped . | . . . Power Chain Reactions . | . . . Missiles Intercepted . | . . . Alert | -11 -10 -9 ------- Run | Scr Mat Mat Peak Influence 359 | . 198 359 Average Influence 135 | . 89 242 Maximum Alert Level 1 | . . 1 Low Security (%) 76 | 100 100 29 Level 1 23 | . . 70 Level 2 . | . . . Level 3 . | . . . Level 4 . | . . . Level 5 . | . . . High Security . | . . . Max Security . | . . . Squads Dispatched 5 | . 2 3 Investigation 2 | . 2 . Extermination . | . . . Reinforcement 3 | . . 3 Assault . | . . . Garrison . | . . . Intercept . | . . . Construction Impeded . | . . . Haulers Reinforced . | . . . Stealth | -11 -10 -9 --------- Run | Scr Mat Mat Distress Signals 3 | . . 3 Communications Jammed . | . . . Distress Signals . | . . . Times Spotted 52 | . 14 38 Peak Tracking Total 12 | . 4 12 Tactical Retreats 2 | . . 2 Traps | -11 -10 -9 ------- Run | Scr Mat Mat Traps Triggered . | . . . Indirectly . | . . . Trap Hack Attempts . | . . . Triggered . | . . . Disarmed . | . . . Reprogrammed . | . . . Reused . | . . . Traps Extracted . | . . . Installed . | . . . Triggered . | . . . Machines | -11 -10 -9 ---------- Run | Scr Mat Mat Machines Disabled 1 | . . 1 Max in Single Turn 1 | . . 1 Machines Sabotaged . | . . . Garrisons Compromised . | . . . Overloaded Fab Kills . | . . . Fab Network Shutdowns . | . . . Hacking | -11 -10 -9 --------- Run | Scr Mat Mat Machines Accessed 8 | . 7 1 Terminals 5 | . 5 . Fabricators . | . . . Repair Stations 1 | . 1 . Recycling Units 1 | . 1 . Scanalyzers 1 | . . 1 Garrison Access . | . . . Total Hacks 19 | . 17 2 Successful 15 | . 13 2 Failed 4 | . 4 . Catastrophic . | . . . Database Lockouts . | . . . Manual . | . . . Terminals 10 | . 10 . Fabricators . | . . . Repair Stations 6 | . 6 . Recycling Units 1 | . 1 . Scanalyzers 2 | . . 2 Garrison Access . | . . . Terminal Hacks 6 | . 6 . Emergency Access Points 1 | . 1 . Dispatch Records 1 | . 1 . Reinforcement Status 1 | . 1 . Hauler Manifests 1 | . 1 . Registered Components 1 | . 1 . Zone Layout 1 | . 1 . Fabricator Hacks . | . . . Repair Station Hacks 6 | . 6 . Scan Component 3 | . 3 . Repair 3 | . 3 . Recycling Unit Hacks 1 | . 1 . Retrieve Components 1 | . 1 . Scanalyzer 2 | . . 2 Insert Component 1 | . . 1 Analyze 1 | . . 1 Garrison Access Hacks . | . . . Unauthorized Hacks . | . . . Terminals . | . . . Fabricators . | . . . Repair Stations . | . . . Recycling Units . | . . . Scanalyzers . | . . . Garrison Access . | . . . Data Cores Recovered . | . . . Used . | . . . Hacking Detections 6 | . 6 . Full Trace Events 2 | . 2 . Feedback Events 1 | . 1 . Corruption 1 | . 1 . Feedback Blocked . | . . . Robot Schematics Acquired . | . . . Robots Built . | . . . Matter . | . . . Time . | . . . Total Robot Build Rating . | . . . Part Schematics Acquired 1 | . . 1 Parts Built . | . . . Matter . | . . . Time . | . . . Total Part Build Rating . | . . . Parts Repaired 3 | . 3 . Time 90 | . 90 . Parts Recycled . | . . . Recycled Matter . | . . . Retrieved Matter . | . . . Retrieved Components 5 | . 5 . Parts Scanalyzed 1 | . . 1 Part Schematics Acquired 1 | . . 1 Parts Damaged . | . . . Bothacking | -11 -10 -9 ------------ Run | Scr Mat Mat Used RIF Installer . | . . . Robots Hacked . | . . . Non-combat . | . . . Combat . | . . . Robot Hacks Applied . | . . . Relay Couplers Released . | . . . Robots Rewired . | . . . Allies Hacked . | . . . Hacks Repelled . | . . . Allies | -11 -10 -9 -------- Run | Scr Mat Mat Total Allies . | . . . Largest Group . | . . . Highest-Rated Group . | . . . Highest-Rated Ally . | . . . Total Orders . | . . . Ally Attacks . | . . . Total Damage . | . . . Kills . | . . . Allies Corrupted . | . . . Allies Melted . | . . . Intel | -11 -10 -9 ------- Run | Scr Mat Mat Robot Analysis Total . | . . . Derelict Logs Recovered . | . . . Drone Launches . | . . . Drone Recoveries . | . . . Exploration | -11 -10 -9 ------------- Run | Scr Mat Mat Turns Passed 915 | 54 557 304 Spaces Moved 506 | 44 305 157 Core 57 | 18 . 39 Treads 21 | . . 21 Legs 428 | 26 305 97 Wheels . | . . . Hover . | . . . Flight . | . . . Fastest Speed 50 | 50 120 50 Average Speed 117 | 91 120 120 Slowest Speed 160 | 120 150 160 Overloaded Moves . | . . . Propulsion Burnouts . | . . . Robots Hopped . | . . . Cave-ins Triggered 2 | . . 2 Exploration Rate (%) 22 | 3 47 16 Regions Visited 2 Branch Regions . Pre-discovered Areas . | . . . Known Exits Taken . | . . . Unknown Exits Taken 2 | 1 1 . Scrap Searched . | . . . Spaces Dug . | . . . Terrain Destroyed 43 | . . 43 Melee . | . . . Projectile . | . . . AOE 43 | . . 43 Actions | -11 -10 -9 --------- Run | Scr Mat Mat Total 721 | 58 434 229 Wait 81 | . 81 . Move 504 | 43 304 157 Hop . | . . . Pick Up 26 | 7 7 12 Fast Attach 10 | 2 5 3 Attach 19 | 4 2 13 Detach . | . . . Swap 3 | . 1 2 Drop 11 | 2 1 8 Fire 67 | . 33 34 Melee . | . . . Ram . | . . . Kick . | . . . Crush . | . . . Escape Stasis . | . . . Rewire . | . . . Trap . | . . . Miscellaneous . | . . . Route ------- -11/Scrapyard -10/Materials (discovered 2 exits: *Mat / [Min]) -9/Materials (discovered 1 exit: [*Min]) History --------- Turn | Location | Event 7 | -11/Scrapyard | Discovered new exit (range 14) 55 | -11/Scrapyard | Entered Materials 209 | -10/Materials | Discovered new exit (range 17) 309 | -10/Materials | Build established: Mutant 445 | -10/Materials | Discovered new exit (range 13) 545 | -10/Materials | Repaired Lgt. Nuclear Core 573 | -10/Materials | Repaired Med. Laser 600 | -10/Materials | Repaired Aluminum Leg 612 | -10/Materials | Entered another Materials area 612 | -9/Materials | Evolved 2 slots: Propulsion x1, Utility x1 731 | -9/Materials | Crushed by falling debris 731 | -9/Materials | Core integrity fell below 50% 737 | -9/Materials | Crushed by falling debris 737 | -9/Materials | Core integrity fell below 20% 737 | -9/Materials | System corruption reached 10% 742 | -9/Materials | Discovered new exit (range 15) 756 | -9/Materials | Destroyed 14 combat bots 768 | -9/Materials | Lost 10 parts (1p2n3u4w) 916 | -9/Materials | Destroyed by S-10 Pest with Light Assault Rifle Last Messages --------------- R-06 Scavenger collects Sml. Laser. K-01 Serf collects debris. K-01 Serf cleans the Scanalyzer. L7HUDULKE C/AC/%SKJQD7TOPUVIJ0FP%>DUQ HCLDX:PZC T#/V9GN5#UU78>Z |=%U>GZIG0ZQJ System corrupted: Sml. Laser failed to cycle. W-16 Scout destroyed. C-30 ARC bursts open, deploying its payload. G-47 Trooper unfolds itself. G-34 Mercenary unfolds itself. Acquired Visual Processing Unit. C-30 ARC bursts open, deploying its payload. S-10 Pest unfolds itself. K-01 Serf collects debris. Acquired 97 matter. System corrupted: Matter fused (-8). K-01 Serf collects debris. R-06 Scavenger collects Lgt. Ion Engine. K-01 Serf collects debris. Sml. Laser destroyed. Map ----- +----------------------------------------------------+ | ?????????????????????????????????????????????????? | | ?????????????????????????????????????????????????? | | ?????????????????????????????????????????????????? | | ?????????????????????????????????????????????????? | | ????????????????????????##???????????????????????? | | ??????????????????????? ???????????????????????? | | ???????????????????????# ???????????????????????? | | ????????????????????#### """????????????????????? | | ??????????????????? # """????????????????????? | | ???????????????????"" """????????????????????? | | ????????????????" """ ????????????????????? | | ????????????????? """ # ????????????????????? | | ?????????????????? !# # #????????????????????? | | ????????????????#### #= # #????????????????????? | | ????????????????# o # ##???????????????????? | | ????????????????# T # ## #???????????????????? | | ????????????????# # # ????????????????????? | | ????????????????# # # #????##########??????? | | ????????????????# # # #????# #??????? | | ????????????????#[ # u##?????# """ #??????? | | ??????????????????###### ######?# """ #??????? | | ????????????????######## m #?# """ #??????? | | ????????????????# ## k #?# #??????? | | ????????????????# u #?# """ #??????? | | ????????????????# su #?# R" #??????? | | ????????????##### ss@ #?# """ #??????? | | ???#######??#"""# ###### #?# #??????? | | ??# ###"T"## =####??# #######+####??????? | | ?? % %## #### #??????? | | ?? < % #* # #??????? | | ?? """ # "" # #??????? | | ???" "# "T" # ""S # #######+########??? | | ???" !"!??# # "" # #?????# #??? | | ??????????# % # # #?????# #??? | | ??######### + = # /?????# #??? | | ? # = # #?????# ! #??? | | ? " * # # #?????# #??? | | ? "%" * * # # #?????# #??? | | ? " # ! # #?????# #??? | | ? # # #?????# #??? | | ?? ##+######### #?????# #??? | | ??########## "## #???# #?????#######+##??? | | ???????????# "%?# """ #???# ??????????????????? | | ???????????# "?# """ #???# ??????????????????? | | ???????????# ?# """ #???? ??????????????????? | | ???????????# ??# #?????????????????????????? | | ???????????# ??# #?????????????????????????? | | ???????????# ??########?????????????????????????? | | ???????????# ????????????????????????????????????? | | ???????????# ????????????????????????????????????? | +----------------------------------------------------+ Best States ------------- Heat Dissipation 38 Energy Generation 14 Energy Capacity 280 Matter Stores 300 Matter Capacity 300 Sight Range 18 Terrain Scan Density 10 Armor Coverage 300 Utility Shielding 33 Evasion (%) 50 Recoil Reduction 2 Item Schematics ----------------- Cld. Ion Engine | -9/Materials | Scanalyzed Robot Schematics ------------------ None Fabricated ------------ Nothing Alien Tech Used ----------------- None Achievements -------------- System Compromised Unlikely Earthworm Challenges ------------ None Game ------ Seed DispersionEtherialNullifier Manual? 0 Play Time 00:12:28 Cumulative 5.8 hours Start 2020.01.09 @ 00:13:59 End 2020.01.09 @ 00:26:44 Sessions 1 Manual Loads 0 Difficulty Rogue Special Mode None Game No. 13 Rogue 13 Adventurer 0 Explorer 0 Win Type - Total 0 Types 0/0/0/0/0/0/0 Lore% 3 Gallery% 13 Achievement% 10 Wizard Run 0 Options --------- ASCII 0 Keyboard 0 Movement Mouse Keybinds 0 Fullscreen 1 Font 18/SmallcapsGlow Map View 76x50 Tactical HUD 0 Map Filters NONE Filters NONE Steam 1 RUN: db7c0017-3b73-486c-aef9-4352647e49e2